bitfinex/quotes_SOLUSD_20250929
["timestamp","ask_amount","ask_price","bid_price","bid_amount"]
[1759171903459,2.8805696,210.8,210.76,5.40455522]
[1759171903952,2.2205696,210.8,210.76,4.74455522]
[1759171904158,2.2205696,210.8,210.76,5.40455522]
[1759171904331,2.2205696,210.8,210.77,0.66]
[1759171904534,2.2205696,210.8,210.71,13.73775558]
[1759171905141,33.92,210.82,210.71,13.73775558]
[1759171905557,33.26,210.82,210.71,13.73775558]
[1759171905759,33.26,210.82,210.71,30.3482629]
[1759171906134,26.0,210.83,210.71,68.06979299]
[1759171906334,59.26,210.83,210.71,68.06979299]
[1759171906534,59.26,210.83,210.72,0.66]
[1759171906759,59.26,210.83,210.73,13.59559401]
[1759171907944,59.26,210.83,210.74,16.60814272]
[1759171910372,0.66,210.82,210.74,16.60814272]
[1759171911240,0.68,210.81,210.74,16.60814272]
[1759171912467,5.42367736,210.81,210.74,11.86295909]
[1759171912968,0.68,210.81,210.74,11.86295909]
[1759171914763,33.94,210.81,210.74,11.86295909]
[1759171918168,33.26,210.81,210.74,11.86295909]
[1759171918350,0.68,210.8,210.74,11.86295909]
[1759171920967,26.0,210.81,210.75,0.67]
[1759171922067,26.0,210.81,210.76,4.74473334]
[1759171922268,26.68,210.81,210.76,4.74473334]
[1759171922884,0.68,210.8,210.76,4.74473334]
[1759171923470,0.68,210.79,210.71,13.99223391]
[1759171923680,0.68,210.78,210.71,4.74585923]
[1759171924064,0.68,210.77,210.69,16.61172557]
[1759171924788,4.74452444,210.77,210.69,4.74630974]
[1759171925080,0.68,210.76,210.69,4.74630974]
[1759171925253,0.68,210.75,210.69,4.74630974]
[1759171925448,33.24,210.76,210.69,4.74630974]
[1759171925850,33.24,210.76,210.69,16.6120841]
[1759171926464,37.984778,210.76,210.69,4.74630974]
[1759171926655,0.68,210.75,210.69,4.74630974]
[1759171927277,33.24,210.76,210.69,4.74630974]
[1759171927483,26.0,210.79,210.71,13.59559401]
[1759171927660,0.68,210.88,210.77,17.06703399]
[1759171927863,14.27246129,210.91,210.81,13.59559401]
[1759171928183,0.68,210.92,210.83,17.06703399]
[1759171928356,0.68,210.92,210.84,0.67]
[1759171928676,0.68,210.98,210.88,26.0]
[1759171928859,33.96,210.97,210.87,26.0]
[1759171929065,33.28,210.97,210.88,0.67]
[1759171929257,0.68,210.96,210.88,0.67]
[1759171929865,0.68,210.96,210.89,4.74180852]
[1759171930096,0.68,210.95,210.89,4.74180852]
[1759171930275,26.68,210.94,210.84,11.85702661]
[1759171930479,0.68,210.93,210.84,11.85702661]
[1759171930788,34.02,210.92,210.84,11.85702661]
[1759171931095,0.68,210.91,210.82,0.67]
[1759171931295,0.68,210.91,210.83,16.60105297]
[1759171931490,0.68,210.91,210.83,17.27105297]
[1759171932382,0.68,210.91,210.84,0.67]
[1759171934171,33.34,210.92,210.85,16.59947829]
[1759171934377,0.68,210.91,210.85,17.25947829]
[1759171935864,0.68,210.91,210.85,5.40270808]
[1759171939084,0.68,210.9,210.85,4.74270808]
[1759171939291,0.68,210.89,210.85,4.74270808]
[1759171939473,0.68,210.88,210.83,4.74315799]
[1759171939669,0.68,210.88,210.83,5.40315799]
[1759171939871,136.34163428,210.9,210.83,5.40315799]
[1759171940075,132.28,210.9,210.83,5.40315799]
[1759171941099,136.34160323,210.9,210.83,5.40315799]
[1759171941277,0.66,210.89,210.83,5.40315799]
[1759171942401,0.66,210.88,210.81,12.51861347]
[1759171942599,0.66,210.87,210.81,12.51861347]
[1759171943497,0.66,210.87,210.81,17.26222145]
[1759171946096,0.66,210.87,210.81,16.60222145]
[1759171946285,0.66,210.87,210.82,0.66]
[1759171946486,0.66,210.87,210.83,0.66]
[1759171947095,0.66,210.87,210.81,16.60222145]
[1759171947297,0.66,210.87,210.81,17.26222145]
[1759171947488,0.66,210.87,210.82,0.66]
[1759171948118,0.66,210.87,210.78,16.60499097]
[1759171948294,33.96,210.89,210.83,0.66]
[1759171948496,131.6,210.88,210.83,0.66]
[1759171948890,0.66,210.87,210.83,0.66]
[1759171949791,0.66,210.87,210.84,4.74293302]
[1759171950485,131.6,210.88,210.84,4.74293302]
[1759171950486,131.6,210.88,210.85,0.66]
[1759171950709,131.6,210.88,210.86,0.66]
[1759171951021,131.6,210.88,210.87,0.66]
[1759171952400,131.6,210.88,210.87,5.40225826]
[1759171954193,0.66,210.93,210.87,17.25790391]
[1759171955810,0.66,210.92,210.87,17.25790391]
[1759171958809,0.66,210.92,210.84,16.60026559]
[1759171959005,0.66,210.92,210.87,0.66]
[1759171959188,0.66,210.92,210.84,16.60026559]
[1759171959386,0.66,210.92,210.85,0.66]
[1759171961104,0.66,210.92,210.86,16.59869107]
[1759171961499,0.66,210.92,210.87,0.66]
[1759171962213,0.66,210.92,210.88,4.74203338]
[1759171962595,33.9,210.94,210.88,5.40203338]
[1759171962909,0.66,210.93,210.88,4.74203338]
[1759171963134,0.66,210.92,210.88,4.74203338]
[1759171963313,0.66,210.92,210.87,16.59790391]
[1759171963818,0.66,210.92,210.87,17.25790391]
[1759171964489,33.24,210.94,210.88,0.66]
[1759171965015,0.66,210.93,210.88,0.66]
[1759171965216,33.24,210.94,210.88,0.66]
[1759171965392,0.66,210.92,210.88,0.66]
[1759171966308,0.66,210.92,210.89,4.74180852]
[1759171968719,0.66,210.94,210.89,17.25632983]
[1759171968905,0.66,210.93,210.89,17.25632983]
[1759171971419,132.28,210.95,210.85,53.90861273]
[1759171971598,0.68,210.94,210.86,0.72]
[1759171973518,0.68,210.94,210.87,16.59790391]
[1759171973699,0.68,210.94,210.88,0.72]
[1759171978160,131.6,210.95,210.89,16.59632983]
[1759171978430,131.6,210.95,210.9,0.72]
[1759171979421,132.28,210.95,210.91,16.59475605]
[1759171979818,0.68,210.94,210.86,0.72]
[1759171980016,0.68,210.94,210.83,33.36216157]
[1759171980212,0.68,210.93,210.84,14.31559401]
[1759171980405,0.68,210.92,210.85,11.85647456]
[1759171980620,0.68,210.91,210.85,11.85647456]
[1759171980812,0.68,210.9,210.85,11.85647456]
[1759171981115,0.68,210.89,210.85,11.85647456]
[1759171981323,0.68,210.89,210.85,12.57647456]
[1759171982116,0.68,210.91,210.86,0.72]
[1759171982318,0.68,210.9,210.86,0.72]
[1759171982923,0.68,210.92,210.87,0.72]
[1759171983119,0.68,210.91,210.85,17.31918264]
[1759171984736,0.68,210.91,210.86,0.72]
[1759171984940,0.68,210.91,210.87,16.59790391]
[1759171985236,0.68,210.91,210.87,17.31790391]
[1759171986740,0.68,210.91,210.85,0.72]
[1759171986938,0.68,210.9,210.85,0.72]
[1759171987850,0.68,210.9,210.84,16.60026559]
[1759171988023,0.68,210.9,210.85,0.72]
[1759171988343,0.68,210.9,210.87,4.74225826]
[1759171988742,0.68,210.9,210.87,16.59790391]
[1759171988945,0.68,210.93,210.87,16.59790391]
[1759171989148,132.28,210.93,210.88,0.72]
[1759171989446,0.68,210.92,210.88,0.72]
[1759171990348,0.68,210.92,210.89,4.74180852]
[1759171990540,131.6,210.93,210.89,16.59632983]
[1759171990737,131.6,210.93,210.9,0.72]
[1759171991130,131.6,210.93,210.91,0.72]
[1759171991844,131.6,210.93,210.92,4.74113407]
[1759171992262,131.6,210.93,210.92,5.46113407]
[1759171992748,131.6,210.93,210.92,4.74113407]
[1759171993631,132.28,210.93,210.92,4.74113407]
[1759171994534,131.6,210.93,210.92,4.74113407]
[1759172001844,132.32,210.93,210.92,4.74113407]
[1759172005452,132.32,210.93,210.86,16.59839238]
[1759172005633,132.32,210.93,210.86,4.74248316]
[1759172005634,33.94,210.92,210.86,4.74248316]
[1759172005834,0.72,210.91,210.86,4.74248316]
[1759172006157,33.94,210.9,210.86,4.74248316]
[1759172006359,0.72,210.89,210.84,4.74293302]
[1759172006577,33.94,210.88,210.84,4.74293302]
[1759172006856,0.72,210.87,210.84,4.74293302]
[1759172007046,0.72,210.86,210.8,16.60298641]
[1759172007251,0.72,210.86,210.8,17.28298641]
[1759172010245,0.72,210.86,210.8,31.40467548]
[1759172010446,37.9620711,210.88,210.8,31.40467548]
[1759172010650,0.72,210.85,210.8,31.40467548]
[1759172010845,0.72,210.84,210.8,31.40467548]
[1759172012147,37.9620711,210.88,210.81,0.68]
[1759172012148,0.72,210.86,210.81,0.68]
[1759172012553,33.22,210.88,210.82,0.68]
[1759172012754,0.72,210.89,210.82,0.68]
[1759172014262,0.72,210.89,210.83,16.60105297]
[1759172014437,0.72,210.88,210.83,16.60105297]
[1759172014645,0.72,210.88,210.83,17.28105297]
[1759172014964,0.72,210.87,210.83,17.28105297]
[1759172015457,0.72,210.87,210.83,16.60105297]
[1759172015840,0.72,210.87,210.83,17.28105297]
[1759172018746,0.72,210.89,210.84,0.68]
[1759172018948,0.72,210.88,210.84,0.68]
[1759172019257,0.72,210.87,210.83,16.60105297]
[1759172019562,0.72,210.87,210.83,17.28105297]
[1759172019762,59.22,210.9,210.83,16.60105297]
[1759172019951,0.72,210.86,210.83,16.60105297]
[1759172020552,0.72,210.85,210.82,4.74338298]
[1759172021754,0.72,210.84,210.82,4.74338298]
[1759172022948,4.74206536,210.88,210.82,4.74338298]
[1759172023148,0.72,210.87,210.82,4.74338298]
[1759172023464,0.72,210.86,210.82,4.74338298]
[1759172023650,0.72,210.85,210.81,4.74360798]
[1759172024268,164.82,210.89,210.81,16.60262795]
[1759172024449,0.72,210.87,210.82,0.68]
[1759172024950,0.72,210.86,210.82,0.68]
[1759172028170,0.72,210.86,210.83,4.74315799]
[1759172032275,169.5618118,210.89,210.81,16.60262795]
[1759172032480,0.65,210.88,210.82,0.66]
[1759172033473,0.65,210.88,210.83,4.74315799]
[1759172033670,0.65,210.88,210.83,5.40315799]
[1759172033880,0.65,210.87,210.83,5.40315799]
[1759172034055,131.6,210.89,210.84,0.66]
[1759172035783,131.6,210.89,210.85,16.59947829]
[1759172035977,131.6,210.89,210.86,0.66]
[1759172036176,131.6,210.89,210.87,0.66]
[1759172036379,132.25,210.89,210.85,16.59947829]
[1759172036679,0.65,210.88,210.85,16.59947829]
[1759172037066,131.6,210.89,210.85,17.25947829]
[1759172037265,0.65,210.88,210.85,16.59947829]
[1759172037464,0.65,210.87,210.85,16.59947829]
[1759172037671,0.65,210.87,210.85,11.85677021]
[1759172038674,131.6,210.89,210.84,4.74293302]
[1759172038879,0.65,210.86,210.84,4.74293302]
[1759172040184,0.65,210.86,210.83,4.74315799]
[1759172040557,131.6,210.89,210.83,4.74315799]
[1759172040558,0.65,210.85,210.83,4.74315799]
[1759172040763,0.65,210.84,210.83,4.74315799]
[1759172040964,136.34182107,210.89,210.83,4.74315799]
[1759172041184,132.25,210.88,210.81,4.74345873]
[1759172041386,33.22,210.87,210.81,4.74345873]
[1759172041586,33.22,210.87,210.79,4.74405806]
[1759172041587,0.65,210.86,210.79,4.74405806]
[1759172041889,0.65,210.85,210.79,4.74405806]
[1759172042092,0.65,210.84,210.79,16.60420322]
[1759172042289,0.65,210.83,210.79,16.60420322]
[1759172042677,0.65,210.83,210.79,31.19417114]
[1759172043083,0.65,210.83,210.79,31.85417114]
[1759172043666,37.96230362,210.87,210.79,31.19417114]
[1759172043667,0.65,210.82,210.79,31.19417114]
[1759172044090,0.65,210.85,210.79,31.85417114]
[1759172044279,0.65,210.84,210.79,31.85417114]
[1759172044587,0.65,210.86,210.8,0.66]
[1759172045969,0.65,210.86,210.81,16.60262795]
[1759172046169,0.65,210.86,210.82,0.66]
[1759172046577,0.65,210.86,210.81,17.26262795]
[1759172047070,33.22,210.87,210.82,0.66]
[1759172047270,0.65,210.86,210.82,0.66]
[1759172048192,0.65,210.85,210.83,4.74315799]
[1759172048596,131.6,210.88,210.84,0.66]
[1759172048890,131.6,210.95,210.86,3.46944933]
[1759172049093,14.26431781,210.99,210.9,26.0]
[1759172049282,0.65,211.0,210.95,3.46944933]
[1759172049471,0.65,210.99,210.95,3.46944933]
[1759172049876,0.65,210.99,210.95,4.12944933]
[1759172050176,21.15,211.01,210.96,16.59082289]
[1759172050370,0.65,211.01,210.97,0.66]
[1759172050591,0.65,211.01,210.96,16.59082289]
[1759172050592,0.65,211.01,210.96,20.06027222]
[1759172051073,0.65,211.01,210.96,20.72027222]
[1759172051393,33.22,211.02,210.96,20.06027222]
[1759172051575,0.65,211.0,210.96,20.06027222]
[1759172052072,0.65,211.03,210.97,0.66]
[1759172052392,0.65,211.03,210.96,20.06027222]
[1759172052594,59.22,211.04,210.96,20.06027222]
[1759172052784,0.65,211.02,210.96,20.06027222]
[1759172052992,0.65,211.01,210.96,20.06027222]
[1759172053211,0.65,211.0,210.96,20.06027222]
[1759172054074,0.72,211.03,210.98,4.73978576]
[1759172054382,59.22,211.04,210.98,4.73978576]
[1759172054383,0.72,211.02,210.98,4.73978576]
[1759172055100,191.54,211.04,210.98,17.28925016]
[1759172055898,190.82,211.04,210.99,0.7]
[1759172056100,190.82,211.04,210.98,20.05869949]
[1759172056280,191.54,211.04,210.99,0.7]
[1759172058296,0.72,211.03,211.0,4.73933649]
[1759172059685,0.72,211.02,211.0,4.73933649]
[1759172063405,0.68,211.01,211.0,4.73933649]
[1759172063978,0.68,211.03,211.0,4.73933649]
[1759172064301,0.68,211.02,211.0,4.73933649]
[1759172067289,0.68,211.01,210.99,4.73952675]
[1759172067500,0.68,211.0,210.97,4.74001042]
[1759172067696,0.68,211.0,210.97,19.15941947]
[1759172067891,0.68,211.0,210.97,4.74001042]
[1759172068095,0.68,211.02,210.97,16.59003649]
[1759172068296,0.68,211.01,210.97,16.59003649]
[1759172068696,0.68,211.03,210.97,17.24003649]
[1759172068886,0.68,211.02,210.97,17.24003649]
[1759172069402,0.68,211.02,210.98,0.65]
[1759172070405,0.68,211.02,210.99,4.73956111]
[1759172070605,0.68,211.01,210.99,4.73956111]
[1759172071499,164.8,211.04,210.99,4.73956111]
[1759172071704,0.68,211.03,210.97,16.59003649]
[1759172071888,0.68,211.02,210.97,31.04932932]
[1759172072211,0.68,211.02,210.97,31.69932932]
[1759172072888,0.68,211.01,210.97,31.04932932]
[1759172073214,0.68,211.0,210.97,31.04932932]
[1759172073393,0.68,210.99,210.97,19.19930325]
[1759172073593,0.68,210.98,210.95,4.74024895]
[1759172073801,33.2,211.01,210.95,4.74024895]
[1759172073998,33.88,211.01,210.95,16.59139851]
[1759172074193,33.88,211.01,210.95,17.24139851]
[1759172074393,33.88,211.01,210.95,31.70348676]
[1759172074911,33.88,211.03,210.97,16.59003649]
[1759172075112,165.48,211.04,210.97,17.24003649]
[1759172075501,0.68,211.03,210.97,17.24003649]
[1759172075809,0.68,211.03,210.98,0.65]
[1759172076011,0.68,211.03,210.99,0.65]
[1759172076711,164.8,211.04,210.99,0.65]
[1759172076919,165.48,211.04,210.99,0.65]
[1759172077093,0.68,211.03,210.99,0.65]
[1759172077506,0.68,211.03,210.97,11.85002607]
[1759172077715,0.68,211.03,210.97,12.50002607]
[1759172078511,0.68,211.03,210.97,17.24003649]
[1759172079109,131.6,211.04,210.98,0.65]
[1759172080294,132.28,211.04,210.99,16.5884639]
[1759172080494,132.28,211.04,210.99,17.2384639]
[1759172081000,132.28,211.04,211.0,0.65]
[1759172081001,131.6,211.04,211.0,0.65]
[1759172081223,131.6,211.04,211.01,0.65]
[1759172081607,0.68,211.07,211.02,0.65]
[1759172081802,0.68,211.07,211.03,0.65]
[1759172082007,26.68,211.07,211.03,0.65]
[1759172082208,26.68,211.07,211.04,4.73843821]
[1759172082597,26.0,211.07,211.04,4.73843821]
[1759172082810,0.68,211.06,211.04,4.73843821]
[1759172083919,26.0,211.07,211.04,4.73843821]
[1759172084101,26.68,211.07,211.04,4.73843821]
[1759172085115,26.68,211.07,211.03,16.58508409]
[1759172086214,0.68,211.06,210.97,0.65]
[1759172086417,131.6,211.05,210.97,12.49949706]
[1759172086622,131.6,211.05,210.98,0.65]
[1759172086808,132.28,211.05,210.98,0.65]
[1759172087317,132.28,211.05,210.99,16.5884639]
[1759172087704,0.68,211.04,210.99,16.5884639]
[1759172088009,0.68,211.03,210.99,17.2384639]
[1759172090319,131.6,211.05,210.99,17.2384639]
[1759172090520,0.68,211.04,210.99,17.2384639]
[1759172090740,0.68,211.03,210.99,17.2384639]
[1759172091222,0.7,211.02,210.99,16.5884639]
[1759172091408,0.7,211.01,210.99,16.5884639]
[1759172092416,0.7,211.01,210.99,11.84890279]
[1759172094718,0.7,211.01,210.97,16.59003649]
[1759172094921,0.7,211.03,210.98,0.66]
[1759172095502,131.6,211.05,210.98,0.66]
[1759172095715,0.7,211.04,210.98,0.66]
[1759172095910,0.7,211.04,210.97,11.85002607]
[1759172096110,0.7,211.03,210.97,11.85002607]
[1759172096313,0.7,211.02,210.97,12.51002607]
[1759172097118,0.7,211.02,210.97,17.25003649]
[1759172098325,0.7,211.02,210.97,11.85002607]
[1759172098534,0.7,211.02,210.98,0.66]
[1759172099730,0.7,211.01,210.97,11.85002607]
[1759172100428,4.73856452,211.04,210.97,16.59003649]
[1759172100616,0.7,211.0,210.97,4.74001042]
[1759172101245,0.7,211.02,210.97,5.40001042]
[1759172101414,0.7,211.01,210.97,5.40001042]
[1759172101611,0.7,211.01,210.97,4.74001042]
[1759172102232,7.9374915,211.04,210.97,16.59003649]
[1759172102425,0.7,211.0,210.97,16.59003649]
[1759172103128,0.7,210.99,210.96,4.74018702]
[1759172103330,0.7,211.02,210.97,0.66]
[1759172103516,0.7,211.02,210.98,0.66]
[1759172104214,3.89892698,211.04,210.99,0.66]
[1759172104415,0.7,211.03,210.99,0.66]
[1759172104617,0.7,211.03,210.98,0.66]
[1759172104818,0.7,211.03,210.96,16.5907748]
[1759172105012,0.7,211.03,210.98,0.66]
[1759172105216,164.78,211.05,210.98,0.66]
[1759172105436,0.7,211.04,210.98,0.66]
[1759172105756,131.6,211.03,210.96,16.5907748]
[1759172105930,0.7,211.02,210.96,4.74018702]
[1759172106107,33.88,211.01,210.96,4.74018702]
[1759172106309,0.7,211.0,210.96,4.74018702]
[1759172106608,33.18,211.01,210.91,4.74135887]
[1759172106609,137.03971006,210.99,210.91,4.74135887]
[1759172106806,132.3,210.98,210.91,4.74135887]
[1759172107008,33.18,210.97,210.91,4.74135887]
[1759172107209,0.7,210.96,210.91,4.74135887]
[1759172107407,158.3,210.98,210.92,0.66]
[1759172107641,191.48,210.98,210.92,0.66]
[1759172108136,191.48,210.98,210.91,4.74135887]
[1759172108315,0.7,210.97,210.91,4.74135887]
[1759172108637,0.7,210.97,210.91,17.25475605]
[1759172109415,0.7,210.97,210.92,0.66]
[1759172109914,190.78,210.98,210.91,16.59475605]
[1759172110119,0.7,210.97,210.91,16.59475605]
[1759172110329,0.7,210.96,210.91,16.59475605]
[1759172110640,0.7,210.96,210.91,17.25475605]
[1759172110946,0.7,210.95,210.91,17.25475605]
[1759172111237,0.7,210.97,210.91,16.59475605]
[1759172111441,0.7,210.97,210.92,0.66]
[1759172111740,190.78,210.98,210.93,0.66]
[1759172111941,131.6,210.98,210.94,0.66]
[1759172112107,0.7,211.02,210.95,0.66]
[1759172112311,0.7,211.04,210.95,0.66]
[1759172113040,0.7,211.04,210.96,16.59082289]
[1759172113342,0.7,211.03,210.96,17.25082289]
[1759172113917,0.7,211.03,210.97,0.66]
[1759172114134,0.7,211.03,210.97,2.8767193]
[1759172114332,0.7,211.03,210.98,0.66]
[1759172114526,0.67,211.03,210.98,0.66]
[1759172114916,0.67,211.03,210.99,16.5884639]
[1759172116227,33.18,211.05,210.99,16.5884639]
[1759172116435,0.67,211.02,210.99,4.73956111]
[1759172116616,0.67,211.04,210.99,4.73956111]
[1759172116816,0.67,211.03,210.99,4.73956111]
[1759172117527,0.67,211.03,210.99,16.5884639]
[1759172117724,0.67,211.02,210.99,4.73956111]
[1759172117936,0.67,211.01,210.99,4.73956111]
[1759172118440,0.67,211.01,210.98,4.73978576]
[1759172118639,0.67,211.0,210.98,4.73978576]
[1759172118832,0.67,210.99,210.98,4.73978576]
[1759172119337,0.67,210.99,210.94,4.74068455]
[1759172119519,0.67,210.98,210.94,4.74068455]
[1759172119716,0.67,210.98,210.94,16.59239593]
[1759172122043,0.67,210.98,210.94,11.85171138]
[1759172122640,132.28,211.03,210.94,11.85171138]
[1759172122844,132.28,211.03,210.95,2.9267193]
[1759172123052,132.28,211.03,210.96,0.71]
[1759172123531,131.6,211.03,210.98,2.2167193]
[1759172123728,131.6,211.03,210.99,0.71]
[1759172123928,131.6,211.03,211.0,0.71]
[1759172124126,131.6,211.03,211.01,4.73911189]
[1759172125455,131.6,211.03,211.0,11.84809353]
[1759172126853,131.6,211.03,211.01,0.71]
[1759172127240,131.6,211.03,210.99,0.71]
[1759172127543,131.6,211.03,211.0,0.71]
[1759172128950,131.6,211.03,211.01,4.73911189]
[1759172129149,26.1,211.08,211.02,0.71]
[1759172129338,26.78,211.08,211.02,0.71]
[1759172131962,26.78,211.08,211.03,16.58531961]
[1759172132134,0.1,211.08,211.04,0.71]
[1759172132334,0.1,211.08,211.05,0.71]
[1759172132851,0.1,211.08,211.06,2.9267193]
[1759172133359,0.1,211.08,211.07,0.71]
[1759172133532,0.1,211.08,211.05,2.2167193]
[1759172133924,0.1,211.08,211.06,33.18]
[1759172134145,0.1,211.08,211.07,4.73776472]
[1759172134944,0.78,211.08,211.04,4.73843821]
[1759172135141,0.68,211.07,211.04,4.73843821]
[1759172135334,0.68,211.06,211.04,4.73843821]
[1759172135532,0.68,211.05,211.01,4.73911189]
[1759172135784,0.68,211.04,211.01,4.73911189]
[1759172137234,0.68,211.04,211.0,16.58767772]
[1759172137435,0.68,211.06,211.0,17.29767772]
[1759172140344,0.78,211.08,211.01,0.71]
[1759172141149,0.78,211.08,211.0,17.29767772]
[1759172141341,0.68,211.07,211.0,17.29767772]
[1759172142048,0.68,211.07,211.0,16.58767772]
[1759172142356,0.68,211.07,211.01,0.71]
[1759172143563,0.68,211.07,211.02,4.7388873]
[1759172143758,0.68,211.06,211.02,4.7388873]
[1759172143956,0.68,211.05,211.02,4.7388873]
[1759172144158,0.68,211.04,211.02,4.7388873]
[1759172144342,0.68,211.03,211.02,4.7388873]
[1759172145539,0.68,211.03,210.99,4.73956111]
[1759172145746,133.9167193,211.08,210.99,4.73956111]
[1759172145747,0.68,211.02,210.99,4.73956111]
[1759172148761,4.73803936,211.06,210.98,4.73978576]
[1759172148957,132.28,211.05,210.98,4.73978576]
[1759172149168,0.68,211.04,210.98,16.58925016]
[1759172149360,0.68,211.03,210.98,16.58925016]
[1759172149557,0.68,211.03,210.98,17.29925016]
[1759172149759,0.68,211.02,210.98,16.58925016]
[1759172150070,131.6,211.05,210.99,0.71]
[1759172150847,132.28,211.05,211.0,16.58767772]
[1759172151058,0.68,211.04,211.0,16.58767772]
[1759172151669,131.6,211.05,211.01,0.7]
[1759172151968,0.1,211.08,211.01,0.7]
[1759172152471,0.1,211.08,211.01,13.59559401]
[1759172152973,0.1,211.08,211.02,16.58610557]
[1759172153165,0.1,211.08,211.02,20.05012632]
[1759172154363,0.1,211.08,211.04,16.58453373]
[1759172154566,0.1,211.08,211.04,49.74453373]
[1759172155173,0.66,211.07,211.04,4.73843821]
[1759172155374,0.66,211.06,211.02,4.7388873]
[1759172155678,0.66,211.05,211.02,4.7388873]
[1759172155888,0.66,211.04,211.02,4.7388873]
[1759172156059,0.66,211.03,211.02,4.7388873]
[1759172156578,0.66,211.03,210.99,4.73956111]
[1759172156783,0.66,211.02,210.99,4.73956111]
[1759172156988,0.66,211.01,210.99,4.73956111]
[1759172157771,33.16,211.06,210.95,16.5911557]
[1759172157772,0.66,211.0,210.95,16.5911557]
[1759172157966,131.6,211.05,210.95,16.5911557]
[1759172158157,0.66,210.99,210.95,16.5911557]
[1759172158563,0.66,211.02,210.95,16.5911557]
[1759172158768,0.66,211.02,210.97,16.59003649]
[1759172159662,131.6,211.05,210.97,16.59003649]
[1759172159969,0.66,211.01,210.97,16.59003649]
[1759172161271,0.66,211.03,210.97,17.12003649]
[1759172161858,0.66,211.03,210.97,16.59003649]
[1759172162057,0.66,211.02,210.97,16.59003649]
[1759172162365,0.66,211.01,210.96,4.74023511]
[1759172162565,0.66,211.0,210.92,0.53]
[1759172162792,0.66,211.0,210.92,16.59396926]
[1759172162986,59.16,211.02,210.92,49.75396926]
[1759172163291,0.66,210.99,210.92,49.75396926]
[1759172163468,0.66,210.98,210.92,49.75396926]
[1759172164286,0.66,210.98,210.92,50.28396926]
[1759172164978,0.66,211.01,210.93,0.53]
[1759172165166,26.0,211.02,210.93,3.99402075]
[1759172165358,26.0,211.02,210.94,0.53]
[1759172165683,26.66,211.02,210.94,0.53]
[1759172166561,26.66,211.02,210.95,16.59160938]
[1759172167578,26.66,211.02,210.95,11.85114956]
[1759172167779,26.66,211.02,210.95,12.38114956]
[1759172167981,131.6,211.01,210.95,12.38114956]
[1759172168181,132.26,211.01,210.95,12.38114956]
[1759172169286,131.6,211.01,210.96,0.53]
[1759172169579,131.6,211.01,210.97,0.53]
[1759172169788,131.6,211.01,210.98,17.11925016]
[1759172170085,131.6,211.01,210.98,49.76925016]
[1759172170284,0.66,211.06,210.99,3.99402075]
[1759172170486,0.1,211.08,210.98,73.46817896]
[1759172170487,0.76,211.08,211.01,3.46402075]
[1759172170668,26.76,211.08,211.01,3.46402075]
[1759172170994,0.66,211.07,210.99,17.05961476]
[1759172171165,0.1,211.08,210.99,17.05961476]
[1759172171166,0.66,211.06,210.99,17.05961476]
[1759172171362,26.1,211.08,210.99,17.05961476]